Cogmind - Beta 16 @@@ ROGUE MODE // 2025.11.02 @ 12:51:36 Player: beans Result: Destroyed by S-10 Pest with Light Assault Rifle Performance ------------- Evolutions (0) 0 Regions Visited (2) 400 Robots Destroyed (14) 70 Value Destroyed (262) 262 Prototype IDs (0) 0 Alien Tech Used (0) 0 Bonus (0) 0 TOTAL SCORE: 732 Bonus ------- None Cogmind --------- Core Integrity 0/250 Matter 97/300 Energy 100/100 System Corruption 0% Temperature Cool (0) Movement Core (150) Ox2 Location -10/Subcaves Parts ------- > --- POWER (1) -------- Backup Power III > --- PROPULSION (2) --- (None) > --- UTILITY (2) ------ (None) > --- WEAPON (2) ------- Subdweller Machine Gun Battle Cannon > --- INVENTORY (5) ---- Light Assault Rifle Peak State ------------ > --- POWER ------------ Backup Power III > --- PROPULSION ------- Backup Propulsion III Backup Propulsion III > --- UTILITY ---------- Backup Plating III > --- WEAPON ----------- Backup Laser III Assault Rifle > --- INVENTORY -------- Light Assault Rifle [Rating: 16] Favorites ----------- Power Backup Power III Engine Backup Power III Propulsion Backup Propulsion III Treads Light Treads Hover Unit Backup Propulsion III Utility Backup Plating III Protection Backup Plating III Weapon Light Assault Rifle Energy Gun Backup Laser III Ballistic Gun Light Assault Rifle Ballistic Cannon Battle Cannon Launcher Grenade Launcher Build | -11 -10 -10 ------- Run | Yrd Mat Sub Slots Evolved . | . . . Power . | . . . Propulsion . | . . . Utility . | . . . Weapon . | . . . Parts Attached 13 | 5 6 2 Power 2 | 1 1 . Engine 2 | 1 1 . Core . | . . . Reactor . | . . . Propulsion 4 | 2 2 . Treads 2 | 2 . . Leg . | . . . Wheel . | . . . Hover 2 | . 2 . Flight . | . . . Utility 1 | . 1 . Device . | . . . Storage . | . . . Processor . | . . . Hackware . | . . . Protection 1 | . 1 . Artifact . | . . . Weapon 6 | 2 2 2 Energy Gun 1 | . 1 . Energy Cannon . | . . . Ballistic Gun 3 | 2 . 1 Ballistic Cannon 1 | . . 1 Launcher 1 | . 1 . Special Weapon . | . . . Impact Weapon . | . . . Slashing Weapon . | . . . Piercing Weapon . | . . . Special Melee Weapon . | . . . Unidentified Prototypes . | . . . Parts Lost 6 | . 3 3 Power 1 | . 1 . Propulsion 2 | . . 2 Utility 1 | . . 1 Weapon 2 | . 2 . Highest Loss Streak 3 | . 2 3 To Critical Strikes . | . . . Average Backups . | . . . Power . | . . . Propulsion . | . . . Utility . | . . . Weapon . | . . . Tool/Special . | . . . Unused Backups 1 | 1 . . Power . | . . . Propulsion 1 | 1 . . Utility . | . . . Weapon . | . . . Tool/Special . | . . . Average Slot Usage (%) 61 | . 69 56 Engine 12 | . 9 14 Treads 4 | . 11 . Hover 13 | . 16 11 Protection 6 | . 7 5 Energy Gun 5 | . 5 5 Ballistic Gun 14 | . 17 12 Ballistic Cannon 4 | . . 7 Peak Build Rating 16 | 5 16 16 Average Rating 9 | 3 10 10 On Entrance 6 | . 5 15 Avg Prop Armor Cover (%) . | . . . Naked Turns . | . . . Heaviest Build 10 | 8 10 9 Greatest Support 40 | 40 40 16 Greatest Overweight (x) 2 | . 1 2 Average Overweight (x) . | . . 1 Largest Inventory Capacity 5 | 5 5 5 Average Capacity 5 | 5 5 5 Most Carried 5 | 5 3 1 Average Carried . | . 1 . Final Capacity 5 | 5 5 5 Final Carried 1 | . 1 1 Class Distribution -------------------- 100% | Mutant Dominant Class ---------------- Mutant | -10/Materials Mutant | -10/Subcaves Resources | -11 -10 -10 ----------- Run | Yrd Mat Sub Matter Collected 406 | 250 62 94 Remotely . | . . . Salvage Created 320 | . 171 149 Parts 39 | . 31 8 Haulers Intercepted 1 | . 1 . Recyclers Shooed 1 | . 1 . Parts Field Recycled . | . . . Retrieved Matter . | . . . Parts Self-Destructed 7 | . . 7 Prevented . | . . . Parts Restored . | . . . Kills | -11 -10 -10 ------- Run | Yrd Mat Sub Combat Hostiles Destroyed 10 | . 7 3 Guns 9 | . 6 3 AOE 1 | . 1 . Classes Destroyed 7 | . 5 2 Worker 1 | . 1 . Builder 2 | . 2 . Hauler 1 | . 1 . Swarmer 6 | . 6 . Grunt 1 | . 1 . Sentry 1 | . . 1 Subdweller 2 | . . 2 Best Kill Streak 4 | . 4 2 Combat Bots Only 3 | . 3 2 Max Kills in Single Turn 1 | . 1 1 Gunslinging . | . . . Exploded 1 | . 1 . Melee . | . . . Uniques/NPCs Destroyed . | . . . Combat | -11 -10 -10 -------- Run | Yrd Mat Sub Hostile Shots Fired 59 | . 35 24 Missed 18 | . 9 9 Hits 41 | . 26 15 Projectile 41 | . 26 15 Critical Strikes 1 | . 1 . Damage Taken 821 | . 409 412 Core 254 | . 92 162 Absorbed by Shields . | . . . Core Remaining (%) 100 | 100 . . Volleys Fired 65 | . 35 30 Largest 2 | . 2 2 Hottest 63 | . 60 63 Shots Fired 123 | . 67 56 Gun 105 | . 65 40 Cannon 16 | . . 16 Launcher 2 | . 2 . Special . | . . . Kinetic 104 | . 58 46 Thermal 17 | . 7 10 Explosive 2 | . 2 . Electromagnetic . | . . . Robot Hit Streak 20 | . 6 20 Robot Miss Streak 4 | . 3 4 Penetration Max . | . . . Secondary Targets 1 | . 1 . Max Gunslinging Chain 1 | . 1 . Shots Hit Robots 47 | . 27 20 Core Hits 17 | . 13 4 Critical Kills 1 | . . 1 Critical Parts Destroyed . | . . . Critical Strikes 2 | . . 2 Destroy 2 | . . 2 Melee Attacks . | . . . Impact . | . . . Slashing . | . . . Piercing . | . . . Sneak Attacks . | . . . Combat Hostiles . | . . . Follow-up Attacks . | . . . Damage Inflicted 980 | . 748 232 Guns 529 | . 297 232 Cannons . | . . . Explosions 451 | . 451 . Melee . | . . . Ramming . | . . . Kinetic 387 | . 271 116 Thermal 486 | . 370 116 Explosive 107 | . 107 . Electromagnetic . | . . . Impact . | . . . Slashing . | . . . Piercing . | . . . Highest Corruption . | . . . Average Corruption . | . . . Corruption Purged . | . . . Corruption Blocked . | . . . Overload Shots . | . . . Overflow Damage 180 | . 180 . Projectiles . | . . . Explosions 180 | . 180 . Melee . | . . . Knockbacks . | . . . Impact . | . . . Kinetic . | . . . Secondary . | . . . Self-Inflicted Damage 198 | . 198 . Shots 3 | . 3 . Rammed . | . . . Targets Rammed . | . . . Kicked . | . . . Crushed . | . . . Highest Temperature 24 | . 24 . Average Temperature 12 | . 12 . Received Heat Transfer 51 | . . 51 Siege Activations . | . . . Martial Activations . | . . . Shielding Activations . | . . . Robots Disrupted . | . . . Combat Hostiles . | . . . Robots Corrupted . | . . . Combat Hostiles . | . . . Parts Fried . | . . . Impact Corruptions . | . . . Robots Melted . | . . . Combat Hostiles . | . . . Parts Melted . | . . . Heat Transferred 657 | . 324 333 Parts Sabotaged . | . . . Parts Stolen . | . . . Parts Stripped . | . . . Power Chain Reactions . | . . . Alert | -11 -10 -10 ------- Run | Yrd Mat Sub Maximum Alert Level . | . . . Low Security (%) 100 | 100 100 . Level 1 . | . . . Level 2 . | . . . Level 3 . | . . . Level 4 . | . . . Level 5 . | . . . High Security . | . . . Max Security . | . . . Peak Influence 132 | . 132 . Initial . | . . . Average 67 | . 78 . Influence Increases 497 | . 342 155 Destroy 0b10 Robot/C 160 | . 140 20 Destroy 0b10 Robot/NC 20 | . 20 . Destroy Leader 22 | . 22 . Disable Machine 45 | . 45 . Destroy Structure 25 | . 25 . Lose Combat Pursuer 225 | . 90 135 Influence Decreases 400 | . 216 184 Entered New Map 62 | . . 62 Time Decay 308 | . 186 122 Lost Part 30 | . 30 . Squads Dispatched 1 | . 1 . Investigation 1 | . 1 . Extermination . | . . . Reinforcement . | . . . Assault . | . . . Garrison . | . . . Intercept . | . . . Searches Triggered . | . . . Construction Impeded . | . . . Haulers Reinforced . | . . . Active Scanning Responses . | . . . Cargo Convoy Interrupts . | . . . Stealth | -11 -10 -10 --------- Run | Yrd Mat Sub Distress Signals . | . . . Communications Jammed . | . . . Distress Signals . | . . . Times Spotted 25 | . 13 12 Peak Tracking Total 6 | . 5 6 Tactical Retreats 8 | . 6 2 Traps | -11 -10 -10 ------- Run | Yrd Mat Sub Traps Triggered 1 | . 1 . Indirectly . | . . . Trap Hack Attempts . | . . . Triggered . | . . . Disarmed . | . . . Reprogrammed . | . . . Reused . | . . . Traps Extracted . | . . . Installed . | . . . Triggered . | . . . Machines | -11 -10 -10 ---------- Run | Yrd Mat Sub Machines Disabled 3 | . 3 . Max in Single Turn 3 | . 3 . Machines Repaired . | . . . Machines Dismantled . | . . . Machines Sabotaged . | . . . Overloaded Fab Kills . | . . . Hacking | -11 -10 -10 --------- Run | Yrd Mat Sub Machines Accessed 1 | . 1 . Terminals . | . . . Fabricators . | . . . Repair Stations . | . . . Recycling Units 1 | . 1 . Scanalyzers . | . . . Garrison Access . | . . . Total Hacks 3 | . 3 . Successful 1 | . 1 . Failed 2 | . 2 . Catastrophic . | . . . Database Lockouts . | . . . Manual 3 | . 3 . Terminals . | . . . Fabricators . | . . . Repair Stations . | . . . Recycling Units 3 | . 3 . Scanalyzers . | . . . Garrison Access . | . . . Terminal Hacks . | . . . Fabricator Hacks . | . . . Repair Station Hacks . | . . . Recycling Unit Hacks . | . . . Scanalyzer . | . . . Garrison Access Hacks . | . . . Unauthorized Hacks . | . . . Terminals . | . . . Fabricators . | . . . Repair Stations . | . . . Recycling Units . | . . . Scanalyzers . | . . . Garrison Access . | . . . Data Cores Recovered . | . . . Used . | . . . Hacking Detections 1 | . 1 . Full Trace Events 1 | . 1 . Feedback Events . | . . . Feedback Blocked . | . . . Robot Schematics Acquired . | . . . Robots Built . | . . . Authchips . | . . . Time . | . . . Total Robot Build Rating . | . . . Part Schematics Acquired . | . . . Parts Built . | . . . Authchips . | . . . Time . | . . . Total Part Build Rating . | . . . Part Studies Acquired . | . . . Parts Repaired . | . . . Time . | . . . Parts Recycled . | . . . Recycled Matter . | . . . Retrieved Matter . | . . . Retrieved Components . | . . . Parts Scanalyzed . | . . . Part Schematics Acquired . | . . . Parts Damaged . | . . . Bothacking | -11 -10 -10 ------------ Run | Yrd Mat Sub Used RIF Installer . | . . . Robots Hacked . | . . . Non-combat . | . . . Combat . | . . . Robot Hacks Applied . | . . . Relay Couplers Released . | . . . Fabnet Peak Effective % . | . . . Robots Rewired . | . . . Allies Hacked . | . . . Hacks Repelled . | . . . Allies | -11 -10 -10 -------- Run | Yrd Mat Sub Total Allies . | . . . Largest Group . | . . . Highest-Rated Group . | . . . Highest-Rated Ally . | . . . Total Orders . | . . . Ally Attacks . | . . . Total Damage . | . . . Kills . | . . . Allies Corrupted . | . . . Allies Melted . | . . . Intel | -11 -10 -10 ------- Run | Yrd Mat Sub Active Infowar (turns) . | . . . Robot Analysis Total . | . . . Derelict Logs Recovered . | . . . Drone Launches . | . . . Drone Recoveries . | . . . Exploration | -11 -10 -10 ------------- Run | Yrd Mat Sub Turns Passed 1166 | 72 435 659 Spaces Moved 633 | 53 197 383 Core 239 | 21 4 214 Treads 102 | 32 70 . Legs . | . . . Wheels . | . . . Hover 292 | . 123 169 Flight . | . . . Fastest Speed 50 | 50 76 50 Average Speed 113 | 116 106 116 Slowest Speed 160 | 160 160 150 Overloaded Moves . | . . . Propulsion Burnouts . | . . . Robots Hopped . | . . . Potential Cave-ins 4 | . . 4 Cave-ins Triggered 1 | . . 1 Exploration Rate (%) 21 | 3 31 29 Regions Visited 2 Branch Regions 1 Pre-discovered Areas . | . . . Known Exits Taken . | . . . Unknown Exits Taken 2 | 1 1 . Scrap Searched . | . . . Spaces Dug 7 | . . 7 Terrain Destroyed 36 | . 28 8 Melee . | . . . Projectile 8 | . . 8 AOE 28 | . 28 . Terrain Rammed . | . . . Walls Destroyed . | . . . Machines Disabled . | . . . Actions | -11 -10 -10 --------- Run | Yrd Mat Sub Total 964 | 64 359 541 Wait 233 | . 112 121 Move 630 | 52 196 382 Hop . | . . . Pick Up 14 | 6 6 2 Fast Attach . | . . . Attach 12 | 5 5 2 Detach . | . . . Swap 5 | . 3 2 Drop 4 | 1 2 1 Fire 65 | . 35 30 Melee . | . . . Ram . | . . . Kick . | . . . Crush . | . . . Escape Stasis 1 | . . 1 Rewire . | . . . Trap . | . . . Miscellaneous . | . . . Route ------- -11/Scrapyard -10/Materials (discovered 2 exits: [*Mat] / [*Sub]) -10/Subcaves (discovered 1 exit: [*Rec]) History --------- Turn | Location | Event 10 | -11/Scrapyard | Discovered new exit (range 15) 73 | -11/Scrapyard | Entered Materials 318 | -10/Materials | Build established: Mutant 374 | -10/Materials | Discovered new exit (range 14) 494 | -10/Materials | Discovered new exit (range 4) 508 | -10/Materials | Entered Subcaves 757 | -10/Subcaves | Ambushed by Subdwellers from Twisted Machinery 781 | -10/Subcaves | Core integrity fell below 50% 817 | -10/Subcaves | Lost 3 parts (2n1u) 919 | -10/Subcaves | A swath of the cavern ceiling suddenly collapsed 1163 | -10/Subcaves | Discovered new exit (range 2) 1166 | -10/Subcaves | Crushed by falling debris 1167 | -10/Subcaves | Core integrity fell below 20% 1167 | -10/Subcaves | Destroyed by S-10 Pest with Light Assault Rifle Last Messages --------------- Dropped Backup Laser III. Acquired Sub. Machine Gun. Acquired 44 matter. Subatomizers dissect the Sub. Optics. XX-7FG(R) destroyed. Acquired 50 matter. Acquired Battle Cannon. Subatomizers dissect the Sub. Optics. Y-45 Defender destroyed. Lgt. Armor Plating crushed. Lgt. Treads crushed. Beam Rifle crushed. 55 Matter crushed. A swath of the cavern ceiling suddenly collapses. Subatomizers dissect the Sub. Optics. The unstable cave ceiling collapses. EXIT=FOUND The unstable cave ceiling collapses. Crushed by falling debris. Map ----- +----------------------------------------------------+ | ???#####????????????####?# ##????# ##??# """# | | ?????????????????????????# #????# #### ! | | ?????????????????????????# ##??## ! | | ?????????????????????????#### #### | | ????????????????????????????## ! | | ?????????????????????????????# & # | | ???????????????????????????### # | | ?????????????????????# # | | ?????????????????????# ## ## # | | ?????????????????????????# ###### # | | ?????????????????????????## ####????# # | | ??????????????????????????# #????????# ### # | | ??????????????????????????# #????????## #?## | | ?????????????????????????# ?????????# #### | | ???????????????????????## ????????## ### | | ???????????????????????# ???????## ##?## | | ???????????????????????# ???????## ##???# | | ???????????????????????# #???????# ##??## | | ????????????????????#### ####?????# #??# | | ????????????????????#" "#?????## #??# | | ????????????????????# #??????# ##??## | | ????????????????????# t #?????## #####??# | | ????????????????????#" s st "#????## ### ##?# | | ?????????????????????" "s" "?##### ## #?# | | ???????????????????????""s""""## ## ##? | | ????????????????????????#@#??#" ## ## | | ????????????????????????###### # ###### | | ????????????????????????# ## #### #????##### | | ????????????????????????#### ##?# ##????????## | | ???????????????????????????###??# ###??????????## | | ????????????????????????????????####?????????????? | | ?????????????????????????????????????????????????? | | ?????????????????????????????????????????????????? | | ?????????????????????????????????????????????????? | | ?????????????????????????????????????????????????? | | ?????????????????????????????????????????????????? | | ?????????????????????????????????????????????????? | | ?????????????????????????????????????????????????? | | ?????????????????????????????????????????????????? | | ?????????????????????????????????????????????????? | | ?????????????????????????????????????????????????? | | ?????????????????????????????????????????????????? | | ?????????????????????????????????????????????????? | | ?????????????????????????????????????????????????? | | ?????????????????????????????????????????????????? | | ?????????????????????????????????????????????????? | | ?????????????????????????????????????????????????? | | ?????????????????????????????????????????????????? | | ?????????????????????????????????????????????????? | | ?????????????????????????????????????????????????? | +----------------------------------------------------+ Best States ------------- Heat Dissipation 25 Energy Generation 11 Energy Capacity 250 Matter Stores 300 Matter Capacity 300 Sight Range 16 Terrain Scan Density 10 Armor Coverage 80 Evasion (%) 49 Recoil Reduction 2 Item Schematics ----------------- None Robot Schematics ------------------ None Fabricated ------------ Nothing Repaired ---------- Nothing Studied --------- None Alien Tech Used ----------------- None Achievements -------------- None Challenges ------------ None Game ------ Seed CentriumTachyonSubcomponent Manual? 0 Play Time 00:07:48 Cumulative 204.0 hours Start 2025.11.02 @ 12:46:12 End 2025.11.02 @ 12:51:36 Sessions 1 Manual Loads 0 Difficulty Rogue Special Mode None Game No. 596 Rogue 595 Adventurer 1 Explorer 0 Win Type - Total 0 Types 0/0/0/0/0/0/0/0/0/0 Lore% 64 Gallery% 61 Achievement% 36 Wizard Run 0 Options --------- Layout 1 ASCII 0 Keyboard 0 Movement Mouse Keybinds 0 Fullscreen 1 Font 24/Smallcaps Map View 50x35 Zoom Use 0% Tactical HUD 0 Map Filters NONE Filters NONE Steam 1 RUN: eb203bad-b2b4-4b95-a444-79e2ba8716f8